lending/lending_fUSD_20240711
["ID","MTS","AMOUNT","RATE_DAILY","PERIOD"]
[331715920,1720687832932,-200.0,0.00013888,2]
[331715921,1720687832941,-155.0,0.00013889,2]
[331715922,1720687832951,-417.93936495,0.00013897,2]
[331715923,1720687832961,-1000.0,0.000139,2]
[331715924,1720687832971,-48676.5025,0.000139,2]
[331715925,1720687832981,-222.35607184,0.000139,2]
[331715926,1720687832990,-760.0,0.000139,2]
[331715927,1720687833000,-625.0,0.000139,2]
[331715928,1720687833009,-645.77507243,0.000139,2]
[331715929,1720687833018,-7303.5284,0.000139,2]
[331715930,1720687833028,-158.45471454,0.000139,2]
[331715931,1720687833037,-163.29386726,0.000139,2]
[331715932,1720687833047,-626.95809267,0.000139,2]
[331715933,1720687833056,-150.0,0.00013937,2]
[331715934,1720687833066,-150.0,0.00013953,2]
[331715935,1720687833075,-150.0,0.00013955,2]
[331715936,1720687833084,-150.0,0.00013962,2]
[331715937,1720687833094,-1049.592926,0.00013973,2]
[331715938,1720687833103,-2000.0,0.00013973,3]
[331715939,1720687833114,-150.0,0.00013973,2]
[331715940,1720687833123,-150.0,0.00013981,2]
[331715941,1720687833134,-150.0,0.00013989,2]
[331715942,1720687833145,-1025.9275081,0.0001399,2]
[331715943,1720687833155,-1025.9275081,0.0001399,2]
[331715944,1720687833163,-1025.9275081,0.0001399,2]
[331715945,1720687833172,-1025.9275081,0.0001399,2]
[331715946,1720687833184,-1025.9275081,0.0001399,2]
[331715947,1720687833194,-304.3076333,0.0001399,2]
[331715948,1720687833204,-304.3076333,0.0001399,2]
[331715949,1720687833214,-304.3076333,0.0001399,2]
[331715950,1720687833223,-304.3076333,0.0001399,2]
[331715951,1720687833233,-304.3076333,0.0001399,2]
[331715952,1720687833242,-273.09054926,0.0001399,2]
[331715953,1720687833252,-500.0,0.00013999,2]
[331715954,1720687833262,-500.0,0.00013999,2]
[331715955,1720687833271,-500.0,0.00013999,2]
[331715956,1720687833281,-383.68101478,0.00013999,2]
[331715957,1720687833290,-500.0,0.00013999,2]
[331715958,1720687833299,-500.0,0.00013999,2]
[331715959,1720687833309,-192.28081156,0.00013999,2]
[331715960,1720687833318,-500.0,0.00013999,2]
[331715961,1720687833327,-500.0,0.00013999,2]
[331715962,1720687833336,-150.0,0.00013999,2]
[331715963,1720687833345,-150.0,0.00013999,7]
[331715964,1720687833354,-554.0,0.00014,2]
[331715965,1720687833364,-72601.72199479,0.00014,2]
[331715966,1720687833577,-7374.7,0.00014,2]
[331715995,1720687838349,-2396.30781176,0.00014,2]
[331715996,1720687838414,-1657.29018716,0.00014,2]
[331715997,1720687838428,-13807.46081107,0.00014,2]
[331716023,1720687840351,-989.22878096,0.00014,2]
[331716025,1720687840364,-952.47687904,0.00014,2]
[331716027,1720687840520,-749.42517212,0.00014,2]
[331716028,1720687840532,-2287.28279277,0.00014,2]
[331716029,1720687840541,-172.69016962,0.00014,2]
[331716030,1720687840553,-7103.85414489,0.00014,2]
[331716031,1720687840564,-3850.09787817,0.00014,2]
[331716071,1720687843348,-419.79607048,0.00014,2]
[331716073,1720687844912,-377.08653509,0.00014,2]
[331716074,1720687844925,-3078.39999999,0.00014,2]
[331716075,1720687844937,-672.32,0.00014,2]
[331716076,1720687844949,-431.34042771,0.00014,2]
[331716088,1720687846454,-5755.3,0.00014,2]
[331716104,1720687846620,-582.959566,0.00014,2]
[331716107,1720687846632,-1542.38631053,0.00014,2]
[331716181,1720688050258,471.22,0.0001137,2]
[331716184,1720688308749,159.5,0.0001043,2]
[331717284,1720689948972,-150.0,0.000126,2]
[331717285,1720689948986,-1250.0,0.00013,2]
[331717286,1720689948996,-1000.0,0.0001305,2]
[331717287,1720689949006,-250.0,0.00013111,2]
[331717288,1720689949017,-10376.66,0.00013188,2]
[331717289,1720689949032,-166.85,0.00013495,2]
[331717290,1720689949055,-471.22,0.00013634,2]
[331717291,1720689949065,-1844.65427015,0.000138,2]
[331717292,1720689949078,-12411.84652715,0.000138,2]
[331717293,1720689949092,-9804.5867027,0.000138,2]
[331717294,1720689949102,-500.0,0.00013887,2]
[331717295,1720689949112,-500.0,0.00013888,2]
[331717296,1720689949123,-200.0,0.00013888,2]
[331717297,1720689949134,-1000.0,0.000139,2]
[331717298,1720689949145,-316.3859,0.000139,2]
[331717299,1720689949155,-1000.0,0.000139,2]
[331717300,1720689949165,-180.68517994,0.000139,2]
[331717301,1720689949177,-2680.40192006,0.000139,2]
[331717302,1720689949187,-222.35607184,0.000139,2]
[331717303,1720689949197,-897.2420081,0.000139,2]
[331717304,1720689949210,-1069.50759817,0.000139,2]
[331717305,1720689949221,-533.25039373,0.000139,2]
[331717306,1720689949231,-548.58833113,0.000139,2]
[331717307,1720689949242,-425.6724947,0.000139,2]
[331717308,1720689949252,-492.48878044,0.00013964,2]
[331717309,1720689949270,-397.22329642,0.00013964,2]
[331717310,1720689949280,-2000.0,0.00013973,3]
[331717311,1720689949291,-292.33438899,0.00013999,2]
[331717312,1720689949301,-1155.98449246,0.00013999,5]
[331717313,1720689949312,-108.73066975,0.00013999,5]
[331717314,1720689949323,-1264.71516222,0.00013999,5]
[331717315,1720689949333,-249.84388387,0.00013999,2]
[331717316,1720689949345,-250.15611613,0.00013999,2]
[331717317,1720689949354,-347.18616294,0.00013999,2]
[331717318,1720689949366,-233.07383706,0.00013999,2]
[331717319,1720689949376,-236.5107934,0.00013999,2]
[331717320,1720689949387,-263.4892066,0.00013999,2]
[331717321,1720689949396,-150.0,0.00013999,2]
[331717322,1720689949406,-54852.20430035,0.00014,2]
[331717323,1720689949418,-494.53,0.00014,2]
[331717324,1720689949508,-1188.00854667,0.00014,2]
[331717325,1720689949521,-1270.89616337,0.00014,2]
[331717326,1720689949534,-31235.36489995,0.00014,2]
[331717327,1720689949576,-470.785,0.00014,2]
[331717328,1720689949590,-1733.33783346,0.00014,2]
[331717329,1720689949602,-1289.1782429,0.00014,2]
[331717330,1720689949612,-116.45433734,0.00014,2]
[331717331,1720689949625,-84084.90840419,0.00014,2]
[331717332,1720689949638,-485.49,0.00014,2]
[331717333,1720689949706,-179205.5588309,0.00014,2]
[331717334,1720689949718,-316.04324704,0.00014,2]
[331717335,1720689949731,-736.6421856,0.00014,2]
[331717345,1720689952331,-5591.00000001,0.00014,2]
[331717346,1720689952342,-315.37056876,0.00014,2]
[331717381,1720689963863,715.22,0.00012,2]
[331717384,1720689964438,208.96968248,0.00011114,2]
[331717398,1720689966841,208.96968247,0.00010913,2]
[331717399,1720689966893,208.96968248,0.00011094,2]
[331717400,1720689967362,444.82445937,0.000118,2]
[331717484,1720690020363,289.46470179,0.00027,120]
[331717486,1720690037958,724.93659768,0.00011199,2]
[331717511,1720690056452,756.85228558,0.00011199,2]
[331717512,1720690066627,539.7160053,0.00011199,2]
[331717516,1720690110279,156.10594643,0.00011199,2]
[331717519,1720690156566,155.0,0.00011199,2]
[331717523,1720690231097,155.0,0.00027,120]
[331717530,1720690232300,-283.39033038,0.00012537,2]
[331717532,1720690232373,-3171.67769962,0.00012537,2]
[331717533,1720690232388,-184.0940624,0.000126,2]
[331717534,1720690232398,-1756.35520545,0.00013088,2]
[331717535,1720690232410,-1301.11082526,0.00013088,2]
[331717536,1720690232448,-355.41834579,0.00013088,2]
[331717537,1720690233466,-170.1487235,0.00013088,2]
[331717538,1720690233477,-400.0,0.00013192,2]
[331717539,1720690233488,-363.34334328,0.000135,2]
[331717540,1720690233501,-56.01665672,0.000135,2]
[331717541,1720690233512,-1794.70895312,0.000135,2]
[331717542,1720690233526,-4465.84526688,0.000135,2]
[331717543,1720690233538,-726.30642565,0.00013516,2]
[331717544,1720690233549,-356.38582122,0.00013574,2]
[331717545,1720690233559,-181.06335149,0.00013574,2]
[331717546,1720690233569,-150.0,0.00013578,2]
[331717547,1720690233580,-308.61,0.00013638,2]
[331717548,1720690233590,-150.0,0.00013638,2]
[331717549,1720690233601,-164.71,0.00013678,2]
[331717550,1720690233611,-300.0,0.00013678,2]
[331717551,1720690233621,-14.68239538,0.0001389,3]
[331717552,1720690233634,-205.67760462,0.0001389,3]
[331717553,1720690233644,-132.68239538,0.00013899,2]
[331717566,1720690238051,-17.31760462,0.00013899,2]
[331717567,1720690238061,-3091.56242292,0.00013899,2]
[331717568,1720690238070,-150.0,0.000139,2]
[331717569,1720690238080,-832.5293,0.000139,2]
[331717570,1720690238089,-2500.0,0.000139,2]
[331717571,1720690238099,-2856.108,0.000139,2]
[331717572,1720690238108,-774.89358291,0.000139,2]
[331717573,1720690238117,-500.0,0.00013986,2]
[331717574,1720690238126,-500.0,0.00013986,2]
[331717575,1720690238135,-500.0,0.00013986,2]
[331717576,1720690238144,-500.0,0.00013986,2]
[331717577,1720690238153,-500.0,0.00013986,2]
[331717578,1720690238162,-500.0,0.00013986,2]
[331717579,1720690238172,-500.0,0.00013986,2]
[331717580,1720690238183,-500.0,0.00013986,2]
[331717581,1720690238195,-618.1443,0.00013986,2]
[331717582,1720690238205,-170.9879181,0.0001399,2]
[331717583,1720690238214,-170.9879181,0.0001399,2]
[331717584,1720690238224,-170.9879181,0.0001399,2]
[331717585,1720690238233,-170.9879181,0.0001399,2]
[331717586,1720690238243,-170.9879181,0.0001399,2]
[331717587,1720690238252,-304.30763365,0.00013995,2]
[331717588,1720690238262,-1000.0,0.00013999,2]
[331717589,1720690238271,-1407.17211486,0.00013999,2]
[331717590,1720690238282,-500.0,0.00013999,2]
[331717591,1720690238293,-500.0,0.00013999,2]
[331717592,1720690238302,-500.0,0.00013999,2]
[331717593,1720690238311,-500.0,0.00013999,2]
[331717594,1720690238322,-313.56262805,0.00013999,2]
[331717595,1720690238331,-548.0,0.00014,2]
[331717596,1720690238340,-8449.59867651,0.00014,2]
[331717597,1720690238384,-1337.30407824,0.00014,2]
[331717601,1720690238419,-62854.31918658,0.00014,2]
[331717603,1720690238430,-10639.6525467,0.00014,2]
[331717604,1720690238439,-84097.6999388,0.00014,2]
[331717615,1720690240134,-2338.07358814,0.00014,2]
[331717616,1720690240217,-1145.49596646,0.00014,2]
[331717677,1720690243407,-58488.80210446,0.00014,2]
[331717686,1720690244062,-1710.56263587,0.00014,2]
[331717692,1720690246157,-592.20419882,0.00014,2]
[331717693,1720690246243,-29199.74691606,0.00014,2]
[331717694,1720690246390,-530.6,0.00014,2]
[331717696,1720690246480,-1321.4022825,0.00014,2]
[331717711,1720690333960,159.02,0.00010565,2]
[331717713,1720690371146,155.0,0.00027,120]
[331717714,1720690390209,1317.61969555,0.00027,120]
[331717715,1720690505713,526.16,0.00011032,2]
[331717716,1720690540556,301.4368241,0.00011032,2]
[331717733,1720690886667,155.32184284,0.00011199,2]
[331717736,1720690922467,220.46996505,0.00011199,2]
[331717737,1720690927456,163.24,0.00010171,2]
[331717738,1720690928767,155.0,0.00011199,2]
[331717744,1720691002325,150.0,0.00011199,2]
[331717745,1720691002351,23.2100581,0.00011199,2]
[331717746,1720691003214,155.26379053,0.00011199,2]
[331717748,1720691065636,450.95794745,0.00011199,2]
[331717750,1720691082218,200.7855083,0.00011199,2]
[331717751,1720691086575,35613.84380334,0.00011199,2]
[331717754,1720691163085,520.28,0.00010898,2]
[331717760,1720691217695,31790.35763791,0.00011199,2]
[331717761,1720691217719,1897.09319402,0.00011199,2]
[331717762,1720691217754,425.00794853,0.00011199,2]
[331717763,1720691217784,1472.80390982,0.00011199,2]
[331717774,1720691366362,366.28466214,0.00011199,2]
[331717777,1720691378272,150.0,0.00011199,2]
[331717778,1720691378293,5.0,0.00011199,2]
[331717795,1720691432115,-266.53614722,0.00012705,2]
[331717796,1720691432228,-91.96855678,0.00012705,2]
[331717797,1720691432237,-250.0,0.0001277,2]
[331717798,1720691432247,-268.35909278,0.00012813,2]
[331717799,1720691432342,-231.64090722,0.00012813,2]
[331717800,1720691432351,-200.0,0.00012866,2]
[331717801,1720691432361,-1000.0,0.0001292,2]
[331717802,1720691432370,-918.49505178,0.00013,2]
[331717803,1720691432381,-331.50494822,0.00013,2]
[331717804,1720691432390,-169.33,0.00013047,2]
[331717805,1720691432399,-150.0,0.00013068,2]
[331717806,1720691432408,-200.0,0.000131,4]
[331717807,1720691432417,-7.32896131,0.000131,2]
[331717857,1720691438045,-683.59103869,0.000131,2]
[331717858,1720691438056,-1736.77,0.00013128,2]
[331717859,1720691438065,-155.41610123,0.00013128,2]
[331717860,1720691438075,-3626.0625371,0.00013161,2]
[331717861,1720691438085,-520.28,0.00013161,2]
[331717862,1720691438095,-1867.85,0.00013161,2]
[331717863,1720691438105,-349.34,0.00013161,2]
[331717864,1720691438114,-854.69,0.000132,2]
[331717865,1720691438124,-150.0,0.000132,2]
[331717866,1720691438133,-165.01,0.000132,2]
[331717867,1720691438143,-150.0,0.000132,2]
[331717868,1720691438152,-500.0,0.000132,4]
[331717869,1720691438162,-700.0,0.000133,4]
[331717870,1720691438172,-855.07,0.00013341,2]
[331717871,1720691438182,-849.69,0.00013341,2]
[331717872,1720691438192,-1000.0,0.000134,4]
[331717873,1720691438201,-150.0,0.00013452,2]
[331717874,1720691438211,-1002.0454222,0.000135,2]
[331717875,1720691438220,-855.07,0.000135,2]
[331717876,1720691438230,-1300.0,0.000135,4]
[331717877,1720691438239,-1399.54620502,0.00013516,2]
[331717878,1720691438249,-685.36886605,0.00013574,2]
[331717879,1720691438258,-855.07,0.000136,2]
[331717880,1720691438267,-855.07,0.000136,2]
[331717881,1720691438276,-150.0,0.000136,2]
[331717882,1720691438286,-200.0,0.000136,4]
[331717883,1720691438296,-200.0,0.00013699,2]
[331717884,1720691438305,-314.6,0.00013699,2]
[331717885,1720691438315,-1500.0,0.00013699,2]
[331717886,1720691438324,-250.0,0.00013699,2]
[331717887,1720691438333,-200.0,0.000137,5]
[331717888,1720691438343,-3000.0,0.000137,2]
[331717889,1720691438353,-1000.0,0.000137,2]
[331717891,1720691438363,-1000.0,0.000137,2]
[331717893,1720691438373,-1101.27917366,0.0001372,2]
[331717894,1720691438383,-401.18313197,0.0001372,2]
[331717896,1720691438395,-764.24072486,0.0001372,2]
[331717898,1720691438405,-3000.0,0.0001375,2]
[331717899,1720691438414,-3325.34361525,0.0001379,2]
[331717900,1720691438423,-1062.72141737,0.00013799,2]
[331717901,1720691438435,-291.29393497,0.00013799,2]
[331717902,1720691438444,-496.93332879,0.00013799,2]
[331717903,1720691438457,-6.37587764,0.00013799,2]
[331717904,1720691438466,-200.0,0.000138,5]
[331717905,1720691438475,-287.32305558,0.00013802,2]
[331717906,1720691438485,-1354.01535229,0.0001381,2]
[331717907,1720691438494,-76.38410552,0.0001381,2]
[331717909,1720691438506,-426.92510088,0.0001381,2]
[331717910,1720691438515,-301.43431989,0.00013821,2]
[331717911,1720691438527,-1052.5810324,0.00013821,2]
[331717912,1720691438536,-503.3092064,0.00013821,2]
[331717913,1720691438546,-1264.77579348,0.00013833,2]
[331717914,1720691438558,-89.23955881,0.00013833,2]
[331717915,1720691438567,-503.3092064,0.00013833,2]
[331717916,1720691438579,-1354.01535229,0.00013844,2]
[331717917,1720691438588,-42.91487181,0.00013844,2]
[331717918,1720691438600,-460.39433459,0.00013844,2]
[331717919,1720691438610,-1354.01535229,0.00013855,2]
[331717920,1720691438620,-503.3092064,0.00013855,2]
[331717921,1720691438629,-1548.02232,0.0001386,2]
[331717922,1720691438639,-256.46379498,0.00013866,2]
[331717923,1720691438650,-1097.55155731,0.00013866,2]
[331717924,1720691438659,-503.3092064,0.00013866,2]
[331717925,1720691438669,-1354.01535229,0.00013878,2]
[331717926,1720691438678,-503.3092064,0.00013878,2]
[331717927,1720691438688,-500.0,0.00013888,2]
[331717928,1720691438697,-200.0,0.00013888,2]
[331717929,1720691438707,-1354.01535229,0.00013889,2]
[331717930,1720691438717,-503.3092064,0.00013889,2]
[331717931,1720691438727,-2487.32350878,0.0001389,2]
[331717932,1720691438736,-488.00353973,0.0001389,2]
[331717933,1720691438746,-220.42,0.0001389,3]
[331717934,1720691438756,-488.00353969,0.00013891,2]
[331717935,1720691438766,-488.00353969,0.00013893,2]
[331717936,1720691438775,-488.00353969,0.00013894,2]
[331717937,1720691438784,-488.00353969,0.00013896,2]
[331717938,1720691438793,-488.00353969,0.00013897,2]
[331717939,1720691438803,-488.00353969,0.00013899,2]
[331717940,1720691438812,-3823.08086477,0.00013899,2]
[331717941,1720691438824,-8208.53520196,0.00013899,2]
[331717942,1720691438835,-1197.01998799,0.00013899,2]
[331717943,1720691438850,-3259.82567228,0.00013899,2]
[331717944,1720691438861,-609.78714,0.00013899,2]
[331717945,1720691438872,-106391.23688617,0.00013899,2]
[331717946,1720691438882,-323.31487624,0.00013899,2]
[331717947,1720691438891,-1000.0,0.000139,2]
[331717948,1720691438901,-150.18290234,0.000139,2]
[331717949,1720691438910,-200.0,0.000139,5]
[331717950,1720691438919,-488.00353969,0.000139,2]
[331717951,1720691438929,-1354.01535229,0.000139,2]
[331717952,1720691438938,-503.3092064,0.000139,2]
[331717953,1720691438948,-1000.0,0.000139,2]
[331717954,1720691438958,-7500.0,0.000139,2]
[331717955,1720691438967,-326.58773452,0.000139,2]
[331717956,1720691438976,-1237.10980239,0.0001391,2]
[331717957,1720691438987,-421.89019761,0.0001391,2]
[331717958,1720691438997,-1029.44787803,0.0001391,2]
[331717960,1720691440189,-155.27484753,0.00013736,2]
[331717961,1720691440198,-800.55212197,0.0001391,2]
[331717962,1720691440207,-1251.0,0.0001391,2]
[331717963,1720691440217,-361.0,0.0001391,2]
[331717964,1720691440226,-1323.419,0.0001391,2]
[331717965,1720691440235,-206.463,0.0001391,2]
[331717966,1720691440244,-2377.0,0.0001391,2]
[331717967,1720691440254,-262.988,0.0001391,2]
[331717968,1720691440263,-1999.096,0.0001391,2]
[331717969,1720691440272,-428.876,0.0001391,2]
[331717970,1720691440281,-549.0,0.0001391,2]
[331717971,1720691440342,-3019.00665202,0.0001391,2]
[331717972,1720691440353,-256.99334798,0.0001391,2]
[331717973,1720691440362,-4045.902326,0.0001391,2]
[331717974,1720691440374,-1769.097674,0.0001391,2]
[331717975,1720691440383,-1122.487,0.0001391,2]
[331717976,1720691440392,-150.492,0.0001391,2]
[331717977,1720691440401,-2802.023326,0.0001391,2]
[331717978,1720691440411,-700.75770547,0.0001391,2]
[331717979,1720691440422,-527.86805897,0.0001391,2]
[331717980,1720691440437,-1001.30950324,0.0001391,2]
[331717981,1720691440447,-148.04140632,0.0001391,2]
[331717982,1720691440457,-453.96626669,0.0001391,2]
[331717983,1720691440468,-745.03373331,0.0001391,2]
[331717984,1720691440477,-1071.0,0.0001391,2]
[331717985,1720691440486,-57.26626669,0.0001391,2]
[331717986,1720691440497,-92.93073331,0.0001391,2]
[331717987,1720691440506,-208.96968247,0.00013916,2]
[331717988,1720691440515,-302.0,0.0001395,2]
[331717989,1720691440524,-2000.0,0.00013973,3]
[331717990,1720691440533,-319.25223108,0.00013989,2]
[331718062,1720691443142,-150.271,0.0001391,2]
[331718064,1720691443152,-150.302,0.0001391,2]
[331718066,1720691443161,-180.74776892,0.00013989,2]
[331718068,1720691443170,-500.0,0.00013989,2]
[331718070,1720691443179,-500.0,0.00013989,2]
[331718072,1720691443189,-2092.0941965,0.0001399,2]
[331718074,1720691443198,-1156.6940329,0.0001399,2]
[331718075,1720691443209,-464.0390751,0.0001399,2]
[331718076,1720691443218,-1149.3720195,0.0001399,2]
[331718077,1720691443227,-678.010931,0.0001399,2]
[331718078,1720691443237,-206.6498425,0.0001399,2]
[331718079,1720691443246,-1094.25696296,0.0001399,2]
[331718080,1720691443256,-6172.37124816,0.0001399,2]
[331718081,1720691443267,-1079.31918,0.0001399,2]
[331718082,1720691443277,-1377.53454,0.0001399,2]
[331718083,1720691443310,-657.39,0.0001399,2]
[331718084,1720691443321,-1957.28577188,0.0001399,2]
[331718085,1720691443333,-3465.7968536,0.0001399,2]
[331718086,1720691443344,-661.66608519,0.0001399,2]
[331718087,1720691443355,-1326.22425809,0.0001399,2]
[331718088,1720691443366,-36765.47454082,0.0001399,2]
[331718089,1720691443375,-42265.2354991,0.0001399,2]
[331718090,1720691443384,-29973.1515576,0.0001399,2]
[331718091,1720691443394,-17681.067616,0.0001399,2]
[331718092,1720691443404,-5388.9836744,0.0001399,2]
[331718093,1720691443413,-4943.5218887,0.0001399,2]
[331718094,1720691443422,-3829.1975298,0.0001399,2]
[331718095,1720691443431,-2714.8731709,0.0001399,2]
[331718096,1720691443440,-1600.5488119,0.0001399,2]
[331718097,1720691443450,-486.224453,0.0001399,2]
[331718098,1720691443460,-2249.01292261,0.0001399,2]
[331718099,1720691443469,-151.0,0.0001399,2]
[331718100,1720691443479,-197.896361,0.0001399,2]
[331718101,1720691443488,-197.896361,0.0001399,2]
[331718102,1720691443497,-1173.725895,0.0001399,2]
[331718103,1720691443506,-151.0,0.0001399,2]
[331718110,1720691443571,-1173.725895,0.0001399,2]
[331718111,1720691443581,-151.0,0.0001399,2]
[331718113,1720691443591,-151.0,0.0001399,2]
[331718115,1720691443600,-151.0,0.0001399,2]
[331718117,1720691443608,-1267.698525,0.0001399,2]
[331718119,1720691443618,-1267.698525,0.0001399,2]
[331718121,1720691443627,-500.0,0.00013998,2]
[331718124,1720691443637,-500.0,0.00013998,2]
[331718126,1720691443646,-500.0,0.00013998,2]
[331718127,1720691443655,-226.69171274,0.00013998,2]
[331718129,1720691443664,-500.0,0.00013998,2]
[331718131,1720691443672,-500.0,0.00013998,2]
[331718133,1720691443682,-500.0,0.00013998,2]
[331718135,1720691443692,-500.0,0.00013998,2]
[331718138,1720691443701,-500.0,0.00013998,2]
[331718142,1720691443711,-500.0,0.00013998,2]
[331718147,1720691443720,-500.0,0.00013998,2]
[331718151,1720691443729,-150.01,0.00013999,2]
[331718154,1720691443738,-606.12193184,0.00013999,2]
[331718157,1720691443748,-694489.85550388,0.00013999,2]
[331718160,1720691443757,-500.0,0.00013999,2]
[331718163,1720691443766,-151.0,0.00013999,2]
[331718165,1720691443775,-151.0,0.00013999,2]
[331718167,1720691443785,-151.0,0.00013999,2]
[331718169,1720691443794,-1476.45,0.00013999,2]
[331718170,1720691443803,-151.61412,0.00013999,2]
[331718171,1720691443813,-151.0,0.00013999,2]
[331718172,1720691443823,-151.0,0.00013999,2]
[331718173,1720691443834,-152.255754,0.00013999,2]
[331718174,1720691443843,-187.053186,0.00013999,2]
[331718175,1720691443853,-152.255754,0.00013999,2]
[331718176,1720691443862,-151.0,0.00013999,2]
[331718177,1720691443871,-151.0,0.00013999,2]
[331718178,1720691443880,-151.0,0.00013999,2]
[331718179,1720691443889,-151.0,0.00013999,2]
[331718180,1720691443898,-151.0,0.00013999,2]
[331718181,1720691443908,-151.0,0.00013999,2]
[331718182,1720691443917,-151.0,0.00013999,2]
[331718183,1720691443926,-151.0,0.00013999,2]
[331718184,1720691443935,-151.0,0.00013999,2]
[331718185,1720691443944,-151.0,0.00013999,2]
[331718186,1720691443954,-153.730506,0.00013999,2]
[331718187,1720691443963,-151.0,0.00013999,2]
[331718188,1720691443972,-151.0,0.00013999,2]
[331718189,1720691443982,-151.0,0.00013999,2]
[331718190,1720691443991,-151.0,0.00013999,2]
[331718191,1720691444001,-151.0,0.00013999,2]
[331718192,1720691444011,-151.0,0.00013999,2]
[331718193,1720691444020,-151.0,0.00013999,2]
[331718194,1720691444029,-194.729195,0.00013999,2]
[331718195,1720691444038,-151.0,0.00013999,2]
[331718196,1720691444048,-151.0,0.00013999,2]
[331718197,1720691444057,-151.0,0.00013999,2]
[331718198,1720691444066,-228.306481,0.00013999,2]
[331718199,1720691444076,-197.896361,0.00013999,2]
[331718200,1720691444085,-1173.725895,0.00013999,2]
[331718201,1720691444095,-197.896361,0.00013999,2]
[331718202,1720691444105,-151.0,0.00013999,2]
[331718203,1720691444114,-1173.725895,0.00013999,2]
[331718204,1720691444125,-155.138738,0.00013999,2]
[331718205,1720691444136,-151.0,0.00013999,2]
[331718206,1720691444146,-151.0,0.00013999,2]
[331718207,1720691444157,-170.978681,0.00013999,2]
[331718208,1720691444166,-188.407781,0.00013999,2]
[331718209,1720691444175,-188.407781,0.00013999,2]
[331718210,1720691444184,-151.0,0.00013999,2]
[331718211,1720691444194,-152.987836,0.00013999,2]
[331718212,1720691444204,-1267.698525,0.00013999,2]
[331718213,1720691444214,-151.0,0.00013999,2]
[331718214,1720691444223,-152.987836,0.00013999,2]
[331718215,1720691444233,-1267.698525,0.00013999,2]
[331718216,1720691444242,-151.0,0.00013999,2]
[331718217,1720691444251,-151.0,0.00013999,2]
[331718218,1720691444260,-225.053659,0.00013999,2]
[331718219,1720691444269,-151.0,0.00013999,2]
[331718220,1720691444279,-153.176716,0.00013999,2]
[331718221,1720691444287,-151.0,0.00013999,2]
[331718222,1720691444297,-151.0,0.00013999,2]
[331718223,1720691444306,-151.543991,0.00013999,2]
[331718224,1720691444315,-151.0,0.00013999,2]
[331718225,1720691444325,-151.0,0.00013999,2]
[331718226,1720691444335,-151.0,0.00013999,2]
[331718227,1720691444344,-152.668734,0.00013999,2]
[331718228,1720691444353,-297.220103,0.00013999,2]
[331718229,1720691444363,-151.0,0.00013999,2]
[331718230,1720691444373,-297.220103,0.00013999,2]
[331718231,1720691444382,-151.0,0.00013999,2]
[331718232,1720691444391,-151.0,0.00013999,2]
[331718233,1720691444401,-151.0,0.00013999,2]
[331718234,1720691444410,-577.0,0.00013999,2]
[331718235,1720691444420,-140994.33549539,0.00014,2]
[331718236,1720691444429,-599397.67613945,0.00014,2]
[331718237,1720691444441,-342160.0,0.00014,2]
[331718238,1720691444453,-387.29072286,0.00014,2]
[331718302,1720691447326,-1047.40550235,0.00014,2]
[331718303,1720691447341,-1731119.84380438,0.00014,2]
[331718304,1720691447352,-266.46525573,0.00014,2]
[331718305,1720691447363,-8479.63585047,0.00014,2]
[331718306,1720691447407,-1407.98030261,0.00014,2]
[331718307,1720691447418,-787.41090683,0.00014,2]
[331718308,1720691447433,-1122.48659999,0.00014,2]